Cogmind - Beta 16 @@@ ROGUE MODE // 2026.01.12 @ 13:14:28 Player: noklam Result: Destroyed by Y-45 Defender with Beam Rifle Performance ------------- Evolutions (2) 1000 Regions Visited (5) 1000 Robots Destroyed (32) 160 Value Destroyed (1107) 1107 Prototype IDs (2) 40 Alien Tech Used (0) 0 Bonus (-13) -13 TOTAL SCORE: 3294 Bonus ------- Friendly Fire -13 Cogmind --------- Core Integrity 0/550 Matter 300/300 Energy 90/100 System Corruption 0% Temperature Cool (18) Movement Core (50) Location -8/Materials Parts ------- > --- POWER (2) -------- (None) > --- PROPULSION (3) --- (None) > --- UTILITY (4) ------ Weight Redist. System > --- WEAPON (2) ------- (None) > --- INVENTORY (5) ---- Missile Launcher Greatsword Greatsword Peak State ------------ > --- POWER ------------ Light Nuclear Core Light Nuclear Core > --- PROPULSION ------- Aluminum Leg Aluminum Leg Carbon-fiber Leg > --- UTILITY ---------- Small Storage Unit Weight Redist. System Weapon Cycler Weapon Cycler > --- WEAPON ----------- Greatsword > --- INVENTORY -------- Improved Heat Sink Hacking Suite Advanced Beam Rifle Mini Grenade Launcher Missile Launcher Greatsword [Rating: 32] Favorites ----------- Power Ion Engine Engine Ion Engine Power Core Light Nuclear Core Propulsion Hover Unit Leg Aluminum Leg Hover Unit Hover Unit Flight Unit Flight Unit Utility Small Storage Unit Device Improved Heat Sink Storage Small Storage Unit Weapon Medium Laser Energy Gun Medium Laser Ballistic Gun Shotgun Ballistic Cannon Light Cannon Slashing Weapon Greatsword Build | -11 -10 -10 -10 -9 -8 ------- Run | Yrd Mat Min Exi Min Mat Slots Evolved 4 | . . . . . 4 Power 1 | . . . . . 1 Propulsion 1 | . . . . . 1 Utility 2 | . . . . . 2 Weapon . | . . . . . . Parts Attached 45 | 6 16 1 1 . 21 Power 8 | 1 2 . 1 . 4 Engine 4 | 1 2 . 1 . . Core 4 | . . . . . 4 Reactor . | . . . . . . Propulsion 15 | 2 8 1 . . 4 Treads . | . . . . . . Leg 5 | 2 . . . . 3 Wheel . | . . . . . . Hover 6 | . 4 1 . . 1 Flight 4 | . 4 . . . . Utility 11 | 1 2 . . . 8 Device 10 | . 2 . . . 8 Storage 1 | 1 . . . . . Processor . | . . . . . . Hackware . | . . . . . . Protection . | . . . . . . Artifact . | . . . . . . Weapon 11 | 2 4 . . . 5 Energy Gun 7 | 2 2 . . . 3 Energy Cannon . | . . . . . . Ballistic Gun 2 | . 1 . . . 1 Ballistic Cannon 1 | . 1 . . . . Launcher . | . . . . . . Special Weapon . | . . . . . . Impact Weapon . | . . . . . . Slashing Weapon 1 | . . . . . 1 Piercing Weapon . | . . . . . . Special Melee Weapon . | . . . . . . Unidentified Prototypes 2 | . . . . . 2 Parts Lost 20 | . 4 1 . . 15 Power 4 | . 1 . . . 3 Propulsion 8 | . 1 1 . . 6 Utility 5 | . . . . . 5 Weapon 3 | . 2 . . . 1 Highest Loss Streak 9 | . 2 1 . . 9 To Critical Strikes . | . . . . . . Average Backups 4 | 2 4 4 4 5 5 Power . | . . 1 1 2 . Propulsion 1 | 1 2 1 1 1 . Utility 1 | . . 1 2 2 2 Weapon 1 | . . . . . 2 Tool/Special . | . . . . . . Unused Backups 16 | . 6 1 1 . 8 Power 3 | . 1 . 1 . 1 Propulsion 3 | . 3 . . . . Utility 5 | . 1 . . . 4 Weapon 4 | . 1 . . . 3 Tool/Special 1 | . . 1 . . . Average Slot Usage (%) 91 | . 97 99 100 100 80 Engine 9 | . 13 14 14 14 3 Core 5 | . . . . . 13 Leg 4 | . 7 . . . 4 Hover 17 | . 14 27 28 28 13 Flight 1 | . 6 . . . . Device 17 | . 13 13 14 14 22 Storage 11 | . 14 14 14 14 8 Energy Gun 13 | . 22 14 14 14 7 Ballistic Gun 1 | . 3 . . . 2 Ballistic Cannon 5 | . 1 14 14 14 . Peak Build Rating 32 | 6 10 9 9 9 32 Average Rating 13 | 4 8 7 8 9 22 On Entrance 6 | . 6 7 8 9 9 Avg Prop Armor Cover (%) . | . . . . . . Naked Turns . | . . . . . . Heaviest Build 35 | 14 16 16 16 16 35 Greatest Support 41 | 20 20 12 12 12 41 Greatest Overweight (x) 8 | 2 4 2 1 1 8 Average Overweight (x) 1 | . . 1 1 1 1 Largest Inventory Capacity 8 | 8 8 8 8 8 8 Average Capacity 7 | 6 8 8 8 8 7 Most Carried 8 | 4 8 7 7 6 8 Average Carried 5 | 2 4 5 5 6 6 Final Capacity 8 | 8 8 8 8 8 5 Final Carried 6 | 4 5 5 6 6 5 Class Distribution -------------------- 80% | Mutant 19% | Scavenger-Mutant Dominant Class ---------------- Mutant | -10/Materials Mutant | -10/Mines Mutant | -10/Exiles Mutant | -9/Mines Mutant | -8/Materials Resources | -11 -10 -10 -10 -9 -8 ----------- Run | Yrd Mat Min Exi Min Mat Matter Collected 833 | 193 187 98 . 49 306 Remotely . | . . . . . . Salvage Created 1297 | . 394 89 . 6 808 Parts 88 | . 18 6 . 2 62 Haulers Intercepted . | . . . . . . Recyclers Shooed . | . . . . . . Parts Field Recycled . | . . . . . . Retrieved Matter . | . . . . . . Parts Self-Destructed . | . . . . . . Prevented . | . . . . . . Parts Restored . | . . . . . . Kills | -11 -10 -10 -10 -9 -8 ------- Run | Yrd Mat Min Exi Min Mat Combat Hostiles Destroyed 30 | . 9 3 . 1 17 Melee 2 | . . . . . 2 Guns 23 | . 9 . . . 14 Cannons 5 | . . 3 . 1 1 Classes Destroyed 8 | . 3 2 . . 3 Worker 1 | . . . . . 1 Tunneler 1 | . . 1 . . . Watcher 1 | . 1 . . . . Swarmer 4 | . 1 . . 1 2 Grunt 17 | . 8 2 . . 7 Brawler 1 | . . . . . 1 Sentry 7 | . . . . . 7 Assembled 1 | . . 1 . . . Best Kill Streak 4 | . 2 2 . 1 4 Combat Bots Only 3 | . 2 1 . 1 3 Max Kills in Single Turn 1 | . 1 1 . 1 1 Gunslinging . | . . . . . . Exploded . | . . . . . . Melee 1 | . . . . . 1 Uniques/NPCs Destroyed . | . . . . . . Combat | -11 -10 -10 -10 -9 -8 -------- Run | Yrd Mat Min Exi Min Mat Hostile Shots Fired 247 | . 43 3 . . 201 Missed 61 | . 11 . . . 50 Hits 186 | . 32 3 . . 151 Melee 3 | . . 2 . . 1 Projectile 183 | . 32 1 . . 150 Critical Strikes 4 | . . . . . 4 Damage Taken 2295 | . 383 78 . . 1834 Core 655 | . 85 12 . . 558 Absorbed by Shields . | . . . . . . Regen/Repaired (Parts) 117 | . 58 . . . 59 Core Remaining (%) 80 | 100 . . . 61 . Volleys Fired 86 | . 31 5 . 3 47 Largest 2 | . 2 2 . 2 2 Hottest 100 | . 90 80 . 80 100 Shots Fired 149 | . 48 11 . 6 84 Gun 138 | . 48 6 . 3 81 Cannon 11 | . . 5 . 3 3 Launcher . | . . . . . . Special . | . . . . . . Kinetic 32 | . . 5 . 3 24 Thermal 80 | . 28 6 . 3 43 Explosive . | . . . . . . Electromagnetic 37 | . 20 . . . 17 Robot Hit Streak 18 | . 6 4 . 1 18 Robot Miss Streak 3 | . 3 1 . 2 3 Penetration Max . | . . . . . . Secondary Targets 1 | . 1 . . . . Max Gunslinging Chain 1 | . 1 . . . . Shots Hit Robots 114 | . 32 7 . 2 73 Core Hits 56 | . 18 4 . 1 33 Critical Kills . | . . . . . . Critical Parts Destroyed . | . . . . . . Critical Strikes 2 | . . . . . 2 Burn 2 | . . . . . 2 Melee Attacks 8 | . . . . . 8 Impact . | . . . . . . Slashing 8 | . . . . . 8 Piercing . | . . . . . . Sneak Attacks . | . . . . . . Combat Hostiles . | . . . . . . Follow-up Attacks . | . . . . . . Damage Inflicted 2045 | . 441 130 . 74 1400 Guns 1476 | . 441 25 . 25 985 Cannons 195 | . . 91 . 49 55 Explosions . | . . . . . . Melee 354 | . . . . . 354 Ramming 20 | . . 14 . . 6 Kinetic 432 | . . 91 . 49 292 Thermal 792 | . 239 25 . 25 503 Explosive . | . . . . . . Electromagnetic 447 | . 202 . . . 245 Impact . | . . . . . . Slashing 354 | . . . . . 354 Piercing . | . . . . . . Highest Corruption 2 | . 2 2 2 2 . Average Corruption 2 | . 2 2 2 2 . Corruption Purged . | . . . . . . Corruption Blocked . | . . . . . . Effects 22 | . 5 8 6 3 . Message Errors 6 | . 1 1 3 1 . Matter Fused 3 | . . 1 . 2 . Heat Flow Errors 3 | . 2 1 . . . Energy Discharges 2 | . . 2 . . . Data Loss (minor) 5 | . 2 2 1 . . Data Loss (major) 1 | . . . 1 . . Misfires 1 | . . 1 . . . Alerts 1 | . . . 1 . . Overload Shots . | . . . . . . Overflow Damage 15 | . . 6 . . 9 Projectiles . | . . . . . . Explosions . | . . . . . . Melee 15 | . . 6 . . 9 Knockbacks 3 | . . 2 . 1 . Impact . | . . . . . . Kinetic 3 | . . 2 . 1 . Secondary . | . . . . . . Self-Inflicted Damage 7 | . . 7 . . . Shots . | . . . . . . Rammed 1 | . . 1 . . . Targets Rammed 2 | . . 1 . . 1 Kicked 1 | . . . . . 1 Crushed . | . . . . . . Highest Temperature 321 | . 134 171 . 72 321 Average Temperature 62 | . 32 44 . 37 109 Received Heat Transfer 900 | . 201 6 . . 693 Siege Activations . | . . . . . . Martial Activations . | . . . . . . Shielding Activations . | . . . . . . Robots Disrupted 1 | . 1 . . . . Combat Hostiles 1 | . 1 . . . . Robots Corrupted 1 | . . 1 . . . Combat Hostiles . | . . . . . . Parts Fried 2 | . . 2 . . . Impact Corruptions 1 | . . 1 . . . Robots Melted . | . . . . . . Combat Hostiles . | . . . . . . Parts Melted 1 | . . . . . 1 Heat Transferred 2220 | . 703 74 . 74 1369 Parts Sabotaged . | . . . . . . Parts Stolen . | . . . . . . Parts Stripped . | . . . . . . Power Chain Reactions . | . . . . . . Alert | -11 -10 -10 -10 -9 -8 ------- Run | Yrd Mat Min Exi Min Mat Maximum Alert Level . | . . . . . . Low Security (%) 100 | 100 100 100 . 100 100 Level 1 . | . . . . . . Level 2 . | . . . . . . Level 3 . | . . . . . . Level 4 . | . . . . . . Level 5 . | . . . . . . High Security . | . . . . . . Max Security . | . . . . . . Peak Influence 121 | . 65 24 . 20 121 Initial 3 | . . . . . 3 Average 14 | . 12 1 . 1 22 Influence Increases 871 | . 253 45 . 20 553 Destroy 0b10 Robot/C 580 | . 180 40 . 20 340 Destroy 0b10 Robot/NC 15 | . 5 5 . . 5 Destroy Leader 152 | . 52 . . . 100 Successful Hack 2 | . . . . . 2 Disable Machine 15 | . 15 . . . . Destroy Structure 2 | . 1 . . . 1 Lose Combat Pursuer 105 | . . . . . 105 Influence Decreases 838 | . 253 45 . 10 530 Entered New Map 7 | . . . . . 7 Time Decay 652 | . 213 45 . 10 384 Lost Part 164 | . 40 . . . 124 Lost Ally 15 | . . . . . 15 Squads Dispatched 9 | . 4 . . . 5 Investigation 3 | . 2 . . . 1 Extermination . | . . . . . . Reinforcement 3 | . 2 . . . 1 Assault . | . . . . . . Garrison 3 | . . . . . 3 Intercept . | . . . . . . Searches Triggered . | . . . . . . Construction Impeded . | . . . . . . Haulers Reinforced . | . . . . . . Active Scanning Responses . | . . . . . . Cargo Convoy Interrupts . | . . . . . . Stealth | -11 -10 -10 -10 -9 -8 --------- Run | Yrd Mat Min Exi Min Mat Distress Signals 4 | . 1 . . . 3 Communications Jammed . | . . . . . . Distress Signals . | . . . . . . Times Spotted 52 | . 16 2 . 3 31 Peak Tracking Total 10 | . 4 1 . 3 10 Tactical Retreats 3 | . . . . . 3 Traps | -11 -10 -10 -10 -9 -8 ------- Run | Yrd Mat Min Exi Min Mat Traps Triggered 3 | . 3 . . . . Indirectly . | . . . . . . Trap Hack Attempts . | . . . . . . Triggered . | . . . . . . Disarmed . | . . . . . . Reprogrammed . | . . . . . . Reused . | . . . . . . Traps Extracted . | . . . . . . Installed . | . . . . . . Triggered . | . . . . . . Machines | -11 -10 -10 -10 -9 -8 ---------- Run | Yrd Mat Min Exi Min Mat Machines Disabled 1 | . 1 . . . . Max in Single Turn 1 | . 1 . . . . Machines Repaired . | . . . . . . Machines Dismantled . | . . . . . . Machines Sabotaged . | . . . . . . Overloaded Fab Kills . | . . . . . . Hacking | -11 -10 -10 -10 -9 -8 --------- Run | Yrd Mat Min Exi Min Mat Machines Accessed 10 | . 1 1 4 . 4 Terminals 2 | . . . . . 2 Fabricators . | . . . . . . Repair Stations 2 | . 1 . . . 1 Recycling Units . | . . . . . . Scanalyzers . | . . . . . . Garrison Access 1 | . . . . . 1 Total Hacks 15 | . 3 1 4 . 7 Successful 11 | . 2 1 4 . 4 Failed 4 | . 1 . . . 3 Catastrophic 1 | . . . . . 1 Database Lockouts . | . . . . . . Manual . | . . . . . . Terminals 2 | . . . . . 2 Fabricators . | . . . . . . Repair Stations 5 | . 3 . . . 2 Recycling Units . | . . . . . . Scanalyzers . | . . . . . . Garrison Access 3 | . . . . . 3 Terminal Hacks 7 | . . 1 4 . 2 Record 5 | . . . 4 . 1 Open Door 1 | . . 1 . . . Alert Level 1 | . . . . . 1 Fabricator Hacks . | . . . . . . Repair Station Hacks 4 | . 2 . . . 2 Scan Component 2 | . 1 . . . 1 Repair 2 | . 1 . . . 1 Recycling Unit Hacks . | . . . . . . Scanalyzer . | . . . . . . Garrison Access Hacks . | . . . . . . Unauthorized Hacks . | . . . . . . Terminals . | . . . . . . Fabricators . | . . . . . . Repair Stations . | . . . . . . Recycling Units . | . . . . . . Scanalyzers . | . . . . . . Garrison Access . | . . . . . . Data Cores Recovered . | . . . . . . Used . | . . . . . . Hacking Detections 4 | . 1 . . . 3 Full Trace Events 1 | . . . . . 1 Feedback Events . | . . . . . . Feedback Blocked . | . . . . . . Robot Schematics Acquired . | . . . . . . Robots Built . | . . . . . . Authchips . | . . . . . . Time . | . . . . . . Total Robot Build Rating . | . . . . . . Part Schematics Acquired . | . . . . . . Parts Built . | . . . . . . Authchips . | . . . . . . Time . | . . . . . . Total Part Build Rating . | . . . . . . Part Studies Acquired . | . . . . . . Parts Repaired 2 | . 1 . . . 1 Time 70 | . 26 . . . 44 Parts Recycled . | . . . . . . Recycled Matter . | . . . . . . Retrieved Matter . | . . . . . . Retrieved Components . | . . . . . . Parts Scanalyzed . | . . . . . . Part Schematics Acquired . | . . . . . . Parts Damaged . | . . . . . . Bothacking | -11 -10 -10 -10 -9 -8 ------------ Run | Yrd Mat Min Exi Min Mat Used RIF Installer . | . . . . . . Robots Hacked . | . . . . . . Non-combat . | . . . . . . Combat . | . . . . . . Robot Hacks Applied . | . . . . . . Relay Couplers Released . | . . . . . . Fabnet Peak Effective % . | . . . . . . Robots Rewired . | . . . . . . Allies Hacked . | . . . . . . Hacks Repelled . | . . . . . . Allies | -11 -10 -10 -10 -9 -8 -------- Run | Yrd Mat Min Exi Min Mat Total Allies . | . . . . . . Largest Group . | . . . . . . Highest-Rated Group . | . . . . . . Highest-Rated Ally . | . . . . . . Total Orders . | . . . . . . Ally Attacks . | . . . . . . Total Damage . | . . . . . . Kills . | . . . . . . Allies Corrupted . | . . . . . . Allies Melted . | . . . . . . Intel | -11 -10 -10 -10 -9 -8 ------- Run | Yrd Mat Min Exi Min Mat Active Infowar (turns) 2126 | . 204 666 325 155 776 Sensors 2126 | . 204 666 325 155 776 Robot Analysis Total . | . . . . . . Derelict Logs Recovered 2 | . . 1 . 1 . Drone Launches 16 | . . . . . 16 Drone Recoveries . | . . . . . . Exploration | -11 -10 -10 -10 -9 -8 ------------- Run | Yrd Mat Min Exi Min Mat Turns Passed 3875 | 71 1092 671 325 155 1561 Spaces Moved 2410 | 52 769 421 273 126 769 Core 89 | 13 1 . . . 75 Treads . | . . . . . . Legs 411 | 39 194 . . . 178 Wheels . | . . . . . . Hover 1753 | . 417 421 273 126 516 Flight 157 | . 157 . . . . Fastest Speed 37 | 50 37 116 116 116 112 Average Speed 129 | 112 116 116 116 116 159 Slowest Speed 450 | 150 250 180 116 116 450 Overloaded Moves . | . . . . . . Propulsion Burnouts . | . . . . . . Robots Hopped . | . . . . . . Potential Cave-ins . | . . . . . . Cave-ins Triggered . | . . . . . . Exploration Rate (%) 54 | 4 89 83 64 30 57 Regions Visited 5 Branch Regions 3 Pre-discovered Areas 1 | . . . . 1 . Known Exits Taken . | . . . . . . Unknown Exits Taken 5 | 1 1 1 1 1 . Scrap Searched 1 | . . . . 1 . Spaces Dug . | . . . . . . Terrain Destroyed . | . . . . . . Melee . | . . . . . . Projectile . | . . . . . . AOE . | . . . . . . Terrain Rammed . | . . . . . . Walls Destroyed . | . . . . . . Machines Disabled . | . . . . . . Actions | -11 -10 -10 -10 -9 -8 --------- Run | Yrd Mat Min Exi Min Mat Total 3008 | 61 924 594 282 129 1018 Wait 358 | . 61 163 3 1 130 Move 2405 | 51 768 420 272 125 769 Hop . | . . . . . . Pick Up 39 | 4 18 1 2 . 14 Fast Attach 24 | 6 7 . . . 11 Attach 25 | . 9 2 2 . 12 Detach 18 | . 9 1 2 . 6 Swap 5 | . 2 . . . 3 Drop 38 | . 19 1 1 . 17 Fire 86 | . 31 5 . 3 47 Melee 8 | . . . . . 8 Ram 1 | . . 1 . . . Kick 1 | . . . . . 1 Crush . | . . . . . . Escape Stasis . | . . . . . . Rewire . | . . . . . . Trap . | . . . . . . Miscellaneous . | . . . . . . Route ------- -11/Scrapyard -10/Materials (discovered 5 exits: [*Mat x3] / *Min / [*Sub]) -10/Mines -10/Exiles -9/Mines -8/Materials (discovered 1 exit: [*Fac]) History --------- Turn | Location | Event 15 | -11/Scrapyard | Discovered new exit (range 15) 72 | -11/Scrapyard | Entered Materials 73 | -10/Materials | Met a group of wandering Federalists 158 | -10/Materials | Discovered new exit (range 16) 177 | -10/Materials | Lost 3 allies 309 | -10/Materials | Build established: Mutant 338 | -10/Materials | Discovered new exit (range 6) 398 | -10/Materials | Discovered new exit (range 7) 917 | -10/Materials | Repaired Med. Laser 940 | -10/Materials | Discovered new exit (range 10) 1010 | -10/Materials | Discovered new exit (range 7) 1164 | -10/Materials | Entered Mines 1213 | -10/Mines | Met a Derelict bent on vengeance 1401 | -10/Mines | Excavation squad dispatched 1401 | -10/Mines | A large section of the Mines collapsed 1649 | -10/Mines | Learned Materials interactive machine intel 1665 | -10/Mines | Found the Drone Emporium 1675 | -10/Mines | Found Prototype Device 1829 | -10/Mines | Deemed a non-threat by the Exiles lab entrance 1830 | -10/Mines | Discovered new exit (range 5) 1835 | -10/Mines | Entered Exiles 1835 | -10/Exiles | Found Exiles lab abandoned 2147 | -10/Exiles | Discovered new exit (range 12) 2160 | -10/Exiles | Entered Mines 2178 | -9/Mines | Learned location of Storage (-9) 2214 | -9/Mines | Assembled infested the area 2219 | -9/Mines | Assisted by a Guerilla fighting off Assembled 2284 | -9/Mines | Discovered new exit (range 6) 2315 | -9/Mines | Entered Materials 2315 | -8/Materials | Evolved 4 slots: Power x1, Propulsion x1, Utility x2 2316 | -8/Materials | Loaded intel: 19 interactive machine locations 2317 | -8/Materials | Identified Decoy Drone Bay 2389 | -8/Materials | Lost 15 allies 2997 | -8/Materials | Discovered new exit (range 10) 3243 | -8/Materials | Build established: Scavenger-Mutant 3660 | -8/Materials | Build established: Mutant 3792 | -8/Materials | Repaired Greatsword 3863 | -8/Materials | Core integrity fell below 50% 3873 | -8/Materials | Core integrity fell below 20% 3876 | -8/Materials | Destroyed by Y-45 Defender with Beam Rifle Last Messages --------------- 03852_ Aluminum Leg destroyed. 03854_ R-06 Scavenger collects Sml. Matter Pod. 03854_ M-13 Machinist repairs A-02 Transporter. 03854_ Lgt. Nuclear Core destroyed. 03856_ S-10 Pest destroyed. 03856_ R-06 Scavenger collects Lgt. Ion Engine. 03857_ Kicked S-10 Pest. 03858_ Acquired 8 matter. 03860_ Weapon Cycler destroyed. 03860_ R-06 Scavenger collects Lgt. Ion Engine. 03863_ Carbon-fiber Leg destroyed. 03863_ R-06 Scavenger collects Wheel. 03864_ Sml. Storage Unit destroyed. 03870_ Adv. Beam Rifle destroyed. 03870_ Weapon Cycler destroyed. 03872_ G-47 Trooper destroyed. 03872_ Critical hit (Burn: +37). 03873_ M-13 Machinist repairs S-10 Pest Flight Unit. 03874_ S-10 Pest destroyed. Map ----- +----------------------------------------------------+ | ############### #??????????????????? | | ??????????????# T #??????????????????? | | ??????????????# #??????????????????? | | ??????????????# ##########???????????????????T | | ??????????????## ##????????????????????????????? | | ???????????????# #?????????????????????????????? | | ???????????????# #?????????????????????????????? | | ???????????????+ ###############???????????????? | | ???????????????# #???#######?????? | | ????????# # #??? T #?????? | | ????????# ! / #?? #?????? | | ????????##############+####### #?!! ! #?????? | | ????????????????????? ?????# # !! #?????? | | ????????????????????? ?????# # !! """ ??????? | | ????????????????????""" "????# + """ ??????? | | ????????????????????""" """??# # """ ??????? | | ??????????????????? """ """??# # #?????? | | ??????????????????? """ """?## ###########??#### | | ??????????????????# ? ?# ############# % | | ??????????????????#???? ?# %%= %% | | ???????????????????######+### !* % %% " | | ???????????????????? ## %% % | | ????????????????????? ## ############# | | ?????????????????????? gY####+################ | | ?????"?????????????????#=! # # ! #% | | ?????T?????????????????#%@g# # # | | ?????"?????????????????#![[# #=== + | | ???????????????????????#%s%# #=== """ # | | ???????????????????????#sm # #=== """ # | | ???????????????????????# # #???? """?# | | ???????????????????????# # #???? ?# | | ???????????????????????# # #???? ??# | | ???????????""??????????# ########+############ | | ???????????"""?????????# #??????# ## ! # | | ????????????S"??########%=%#??????# ## !# | | ???????????"""??# *% =######## ## "T" # | | ???????????"""??# [ %# # ## """ # | | ????????????????# "" % [#"" # ########+##### | | ????????????????# """ *#"T + T ### | | ????????????????# """ =#"" # ## | | ????????????????# # # ## | | ????????????????# # # = """ ## | | #########???????# ######## """ #?? | | #???????# #??????# """ ##### | | *! ! #??###### """ #??????# """ | | # # """ #??????# | | # """ # """ #??????# | | """ """ # """"" # """ #??????# | | """/""" # """"" # """ ######## | | """ """ # """"" # # # | +----------------------------------------------------+ Best States ------------- Heat Dissipation 55 Energy Generation 23 Energy Capacity 400 Matter Stores 300 Matter Capacity 300 Sight Range 16 Robot Scan Range 15 Terrain Scan Density 10 Additional Mass Support 6 Resistance: EX 25 Weapon Cycling 30 Evasion (%) 55 Item Schematics ----------------- None Robot Schematics ------------------ None Fabricated ------------ Nothing Repaired ---------- Med. Laser | 17% | -10/Materials Greatsword | 57% | -8/Materials Studied --------- None Alien Tech Used ----------------- None Achievements -------------- Plot Armor Release The Drones! Challenges ------------ None Game ------ Seed MetafieldOmegaJetlance Manual? 0 Play Time 00:40:26 Cumulative 12.6 hours Start 2026.01.12 @ 12:33:27 End 2026.01.12 @ 13:14:28 Sessions 1 Manual Loads 0 Difficulty Rogue Special Mode None Game No. 20 Rogue 20 Adventurer 0 Explorer 0 Win Type - Total 0 Types 0/0/0/0/0/0/0/0/0/0 Lore% 9 Gallery% 17 Achievement% 10 Wizard Run 0 Options --------- Layout 1 ASCII 0 Keyboard 1 Movement Vi Keybinds 0 Fullscreen 1 Font 32/SmallcapsGlow Map View 50x35 Zoom Use 0% Tactical HUD 1 Map Filters NONE Filters NONE Steam 1 RUN: e9aa7e05-66c0-4e4f-9dac-6bdcdac7c216